[Event "Titled Tuesday Blitz October 11 Late 2022"]
[White "Sowul, Bartosz"]
[Black "Krishnan, Varun"]
[WhiteFideId "1137590"]
[BlackFideId "5054508"]
[WhiteElo "2188"]
[BlackElo "2625"]
[Result "0-1"]
[Round "03"]
[TimeControl "180+1"]
[Date "2022.10.12"]
[WhiteClock "0:00:42"]
[BlackClock "0:00:25"]

1. e4 {[%clk 0:03:00]}  e5 {[%clk 0:02:57]} 2. Nf3 {[%clk 0:03:00]}  Nc6 {[%clk 0:02:57]} 3. Nc3 {[%clk 0:03:00]}  Nf6 {[%clk 0:02:57]} 4. d4 {[%clk 0:03:00]}  exd4 {[%clk 0:02:57]} 5. Nd5 {[%clk 0:03:01]}  d6 {[%clk 0:02:49]} 6. Bb5 {[%clk 0:02:50]}  Bd7 {[%clk 0:02:42]} 7. Nxd4 {[%clk 0:02:44]}  Nxd5 {[%clk 0:02:36]} 8. exd5 {[%clk 0:02:42]}  Nxd4 {[%clk 0:02:36]} 9. Bxd7+ {[%clk 0:02:42]}  Qxd7 {[%clk 0:02:35]} 10. Qxd4 {[%clk 0:02:43]}  f6 {[%clk 0:02:17]} 11. O-O {[%clk 0:02:34]}  Be7 {[%clk 0:02:15]} 12. Re1 {[%clk 0:02:23]}  O-O {[%clk 0:02:14]} 13. Bd2 {[%clk 0:02:02]}  Rfe8 {[%clk 0:02:07]} 14. Bc3 {[%clk 0:01:59]}  Bf8 {[%clk 0:02:05]} 15. f4 {[%clk 0:01:59]}  Qf5 {[%clk 0:02:02]} 16. Qd2 {[%clk 0:01:49]}  h5 {[%clk 0:01:47]} 17. g3 {[%clk 0:01:39]}  c6 {[%clk 0:01:40]} 18. dxc6 {[%clk 0:01:34]}  bxc6 {[%clk 0:01:39]} 19. Bd4 {[%clk 0:01:33]}  a6 {[%clk 0:01:32]} 20. c4 {[%clk 0:01:32]}  d5 {[%clk 0:01:22]} 21. cxd5 {[%clk 0:01:28]}  Qxd5 {[%clk 0:01:20]} 22. Qc3 {[%clk 0:01:15]}  Kh8 {[%clk 0:00:48]} 23. b3 {[%clk 0:00:51]}  a5 {[%clk 0:00:43]} 24. Rad1 {[%clk 0:00:48]}  Rxe1+ {[%clk 0:00:30]} 25. Rxe1 {[%clk 0:00:42]}  Bb4 {[%clk 0:00:25]} 0-1


[Site "https://www.chess.com"]

[Event "Titled Tuesday Blitz October 11 Late 2022"]
[White "Svicevic, Rastko"]
[Black "Meduri, Aakaash"]
[WhiteFideId "916315"]
[BlackFideId "2032252"]
[WhiteElo "2103"]
[BlackElo "2113"]
[Result "0-1"]
[Round "03"]
[TimeControl "180+1"]
[Date "2022.10.12"]
[WhiteClock "0:00:14"]
[BlackClock "0:01:07"]

1. d4 {[%clk 0:03:00]}  h6 {[%clk 0:02:55]} 2. e4 {[%clk 0:02:45]}  d5 {[%clk 0:02:53]} 3. exd5 {[%clk 0:02:44]}  Qxd5 {[%clk 0:02:54]} 4. Nc3 {[%clk 0:02:43]}  Qd8 {[%clk 0:02:53]} 5. g3 {[%clk 0:02:39]}  c6 {[%clk 0:02:50]} 6. Bg2 {[%clk 0:02:39]}  Bf5 {[%clk 0:02:50]} 7. Nge2 {[%clk 0:02:35]}  e6 {[%clk 0:02:50]} 8. O-O {[%clk 0:02:35]}  Nf6 {[%clk 0:02:50]} 9. Bf4 {[%clk 0:02:26]}  Be7 {[%clk 0:02:50]} 10. h3 {[%clk 0:02:17]}  Bh7 {[%clk 0:02:43]} 11. g4 {[%clk 0:02:17]}  Nd5 {[%clk 0:02:42]} 12. Bg3 {[%clk 0:02:16]}  Nd7 {[%clk 0:02:41]} 13. Qd2 {[%clk 0:02:16]}  O-O {[%clk 0:02:40]} 14. Ne4 {[%clk 0:02:14]}  N7f6 {[%clk 0:02:26]} 15. f3 {[%clk 0:02:02]}  Qb6 {[%clk 0:02:16]} 16. c4 {[%clk 0:01:52]}  Nxe4 {[%clk 0:02:16]} 17. fxe4 {[%clk 0:01:51]}  Nf6 {[%clk 0:02:17]} 18. Nc3 {[%clk 0:01:35]}  Rad8 {[%clk 0:02:15]} 19. Bf2 {[%clk 0:01:26]}  Qb4 {[%clk 0:02:10]} 20. Rac1 {[%clk 0:01:03]}  Rd7 {[%clk 0:02:02]} 21. e5 {[%clk 0:00:47]}  Ne8 {[%clk 0:02:00]} 22. Qe2 {[%clk 0:00:31]}  Nc7 {[%clk 0:01:52]} 23. a3 {[%clk 0:00:32]}  Qb3 {[%clk 0:01:52]} 24. Ne4 {[%clk 0:00:28]}  Rfd8 {[%clk 0:01:42]} 25. Rc3 {[%clk 0:00:27]}  Qa4 {[%clk 0:01:41]} 26. Be3 {[%clk 0:00:20]}  Rxd4 {[%clk 0:01:27]} 27. Bxd4 {[%clk 0:00:18]}  Rxd4 {[%clk 0:01:28]} 28. Qf2 {[%clk 0:00:18]}  Rd7 {[%clk 0:01:08]} 29. Qxf7+ {[%clk 0:00:16]}  Kh8 {[%clk 0:01:09]} 30. Nf6 {[%clk 0:00:14]}  Bc5+ {[%clk 0:01:07]} 0-1


[Site "https://www.chess.com"]

[Event "Titled Tuesday Blitz October 11 Late 2022"]
[White "Sztokbant, Bernardo Vainzoff"]
[Black "Osmonbekov, Talaibek"]
[WhiteFideId "2115956"]
[BlackFideId "2017253"]
[WhiteElo "2171"]
[BlackElo "2135"]
[Result "1-0"]
[Round "03"]
[TimeControl "180+1"]
[Date "2022.10.12"]
[WhiteClock "0:00:51"]
[BlackClock "0:00:10"]

1. e4 {[%clk 0:03:00]}  c5 {[%clk 0:02:58]} 2. Nf3 {[%clk 0:03:00]}  d6 {[%clk 0:02:58]} 3. c3 {[%clk 0:02:56]}  Nf6 {[%clk 0:02:57]} 4. Qc2 {[%clk 0:02:54]}  e5 {[%clk 0:02:29]} 5. g3 {[%clk 0:02:50]}  Nc6 {[%clk 0:02:25]} 6. Bg2 {[%clk 0:02:49]}  Be7 {[%clk 0:02:25]} 7. O-O {[%clk 0:02:40]}  O-O {[%clk 0:02:25]} 8. Re1 {[%clk 0:02:38]}  h6 {[%clk 0:02:21]} 9. d3 {[%clk 0:02:38]}  Bg4 {[%clk 0:02:21]} 10. h3 {[%clk 0:02:37]}  Be6 {[%clk 0:02:20]} 11. Nbd2 {[%clk 0:02:37]}  Rc8 {[%clk 0:02:17]} 12. Nf1 {[%clk 0:02:36]}  Re8 {[%clk 0:01:59]} 13. Ne3 {[%clk 0:02:32]}  Qd7 {[%clk 0:01:58]} 14. Kh2 {[%clk 0:02:32]}  Bf8 {[%clk 0:01:57]} 15. Bd2 {[%clk 0:02:32]}  d5 {[%clk 0:01:54]} 16. exd5 {[%clk 0:02:29]}  Nxd5 {[%clk 0:01:53]} 17. Nc4 {[%clk 0:02:28]}  f6 {[%clk 0:01:50]} 18. Nh4 {[%clk 0:02:21]}  b5 {[%clk 0:01:42]} 19. Ne3 {[%clk 0:02:21]}  Rcd8 {[%clk 0:01:37]} 20. Rad1 {[%clk 0:02:20]}  Nde7 {[%clk 0:01:27]} 21. Bc1 {[%clk 0:02:18]}  Rc8 {[%clk 0:01:23]} 22. Qe2 {[%clk 0:02:17]}  Bf7 {[%clk 0:01:20]} 23. Ng4 {[%clk 0:02:12]}  Bxa2 {[%clk 0:01:09]} 24. Bxh6 {[%clk 0:02:11]}  Bb3 {[%clk 0:00:56]} 25. Ra1 {[%clk 0:02:10]}  a5 {[%clk 0:00:46]} 26. Bd2 {[%clk 0:01:49]}  a4 {[%clk 0:00:45]} 27. Qf3 {[%clk 0:01:45]}  Rcd8 {[%clk 0:00:25]} 28. Bf1 {[%clk 0:01:40]}  Bd5 {[%clk 0:00:21]} 29. Qe3 {[%clk 0:01:28]}  Nf5 {[%clk 0:00:18]} 30. Nxf5 {[%clk 0:01:27]}  Qxf5 {[%clk 0:00:19]} 31. Be2 {[%clk 0:01:18]}  Na5 {[%clk 0:00:15]} 32. c4 {[%clk 0:01:13]}  Nb3 {[%clk 0:00:12]} 33. cxd5 {[%clk 0:01:11]}  Nxa1 {[%clk 0:00:11]} 34. Rxa1 {[%clk 0:01:11]}  Rxd5 {[%clk 0:00:11]} 35. Rc1 {[%clk 0:00:57]}  Red8 {[%clk 0:00:10]} 36. Be1 {[%clk 0:00:51]} 1-0


[Site "https://www.chess.com"]

[Event "Titled Tuesday Blitz October 11 Late 2022"]
[White "Talibov, Shiroghlan"]
[Black "Theodorou, Nikolas"]
[WhiteFideId "13429078"]
[BlackFideId "4262875"]
[WhiteElo "2242"]
[BlackElo "2512"]
[Result "1/2-1/2"]
[Round "03"]
[TimeControl "180+1"]
[Date "2022.10.11"]
[WhiteClock "0:00:23"]
[BlackClock "0:01:24"]

1. c4 {[%clk 0:03:00]}  Nf6 {[%clk 0:02:59]} 2. Nc3 {[%clk 0:03:00]}  g6 {[%clk 0:02:59]} 3. Nf3 {[%clk 0:02:59]}  d6 {[%clk 0:03:00]} 4. g3 {[%clk 0:02:59]}  Bg7 {[%clk 0:03:01]} 5. d4 {[%clk 0:02:59]}  O-O {[%clk 0:03:02]} 6. Bg2 {[%clk 0:03:00]}  Nc6 {[%clk 0:03:02]} 7. O-O {[%clk 0:03:00]}  e5 {[%clk 0:03:03]} 8. dxe5 {[%clk 0:03:00]}  dxe5 {[%clk 0:03:04]} 9. Bg5 {[%clk 0:02:56]}  h6 {[%clk 0:03:04]} 10. Qxd8 {[%clk 0:02:44]}  Rxd8 {[%clk 0:03:05]} 11. Bxf6 {[%clk 0:02:44]}  Bxf6 {[%clk 0:03:05]} 12. Nd5 {[%clk 0:02:44]}  Kg7 {[%clk 0:03:06]} 13. Nd2 {[%clk 0:02:36]}  Nb4 {[%clk 0:02:34]} 14. Ne4 {[%clk 0:02:22]}  Nxd5 {[%clk 0:02:31]} 15. cxd5 {[%clk 0:02:23]}  Be7 {[%clk 0:02:30]} 16. Rac1 {[%clk 0:02:20]}  Bd6 {[%clk 0:02:03]} 17. Nxd6 {[%clk 0:02:03]}  cxd6 {[%clk 0:02:03]} 18. Rc7 {[%clk 0:02:01]}  Rb8 {[%clk 0:02:03]} 19. f4 {[%clk 0:01:48]}  Rd7 {[%clk 0:01:55]} 20. Rfc1 {[%clk 0:01:45]}  Rxc7 {[%clk 0:01:53]} 21. Rxc7 {[%clk 0:01:46]}  exf4 {[%clk 0:01:53]} 22. gxf4 {[%clk 0:01:46]}  Bg4 {[%clk 0:01:53]} 23. Kf2 {[%clk 0:01:45]}  Rc8 {[%clk 0:01:53]} 24. Rxb7 {[%clk 0:01:42]}  a5 {[%clk 0:01:53]} 25. Rb5 {[%clk 0:01:35]}  a4 {[%clk 0:01:50]} 26. Rb4 {[%clk 0:01:33]}  a3 {[%clk 0:01:38]} 27. bxa3 {[%clk 0:01:31]}  Rc2 {[%clk 0:01:38]} 28. Bf3 {[%clk 0:01:32]}  Bf5 {[%clk 0:01:33]} 29. Rb6 {[%clk 0:01:23]}  Rxa2 {[%clk 0:01:33]} 30. Rxd6 {[%clk 0:01:23]}  Rxa3 {[%clk 0:01:34]} 31. e4 {[%clk 0:01:23]}  Bh3 {[%clk 0:01:34]} 32. Rb6 {[%clk 0:01:04]}  h5 {[%clk 0:01:33]} 33. e5 {[%clk 0:01:01]}  h4 {[%clk 0:01:33]} 34. Rb7 {[%clk 0:00:55]}  Kf8 {[%clk 0:01:25]} 35. Rb8+ {[%clk 0:00:37]}  Kg7 {[%clk 0:01:25]} 36. Rb7 {[%clk 0:00:28]}  Ra2+ {[%clk 0:01:25]} 37. Ke3 {[%clk 0:00:25]}  Ra3+ {[%clk 0:01:24]} 38. Kf2 {[%clk 0:00:23]} 1/2-1/2


[Site "https://www.chess.com"]

[Event "Titled Tuesday Blitz October 11 Late 2022"]
[White "Tari, Aryan"]
[Black "Thomforde-Toates, Noah"]
[WhiteFideId "1510045"]
[BlackFideId "30951992"]
[WhiteElo "2612"]
[BlackElo "2691"]
[Result "1/2-1/2"]
[Round "03"]
[TimeControl "180+1"]
[Date "2022.10.11"]
[WhiteClock "0:00:03"]
[BlackClock "0:00:04"]

1. c4 {[%clk 0:03:00]}  Nf6 {[%clk 0:02:57]} 2. Nc3 {[%clk 0:02:59]}  g6 {[%clk 0:02:57]} 3. d4 {[%clk 0:02:51]}  Bg7 {[%clk 0:02:55]} 4. e4 {[%clk 0:02:51]}  d6 {[%clk 0:02:55]} 5. Nf3 {[%clk 0:02:51]}  O-O {[%clk 0:02:54]} 6. Be2 {[%clk 0:02:52]}  e5 {[%clk 0:02:54]} 7. d5 {[%clk 0:02:52]}  a5 {[%clk 0:02:54]} 8. Bg5 {[%clk 0:02:53]}  h6 {[%clk 0:02:54]} 9. Bh4 {[%clk 0:02:54]}  Na6 {[%clk 0:02:52]} 10. Nd2 {[%clk 0:02:54]}  Qe8 {[%clk 0:02:52]} 11. Qc2 {[%clk 0:02:46]}  Bd7 {[%clk 0:02:51]} 12. O-O {[%clk 0:02:45]}  Nh7 {[%clk 0:02:50]} 13. b3 {[%clk 0:02:37]}  h5 {[%clk 0:02:48]} 14. f3 {[%clk 0:02:34]}  Bf6 {[%clk 0:02:48]} 15. Bf2 {[%clk 0:02:33]}  Qe7 {[%clk 0:02:48]} 16. a3 {[%clk 0:02:32]}  Bh4 {[%clk 0:02:47]} 17. Nd1 {[%clk 0:02:09]}  Bxf2+ {[%clk 0:02:44]} 18. Nxf2 {[%clk 0:02:08]}  Qg5 {[%clk 0:02:35]} 19. Kh1 {[%clk 0:02:04]}  Qe3 {[%clk 0:02:26]} 20. Rae1 {[%clk 0:01:53]}  a4 {[%clk 0:02:15]} 21. Nd1 {[%clk 0:01:27]}  axb3 {[%clk 0:02:14]} 22. Nxb3 {[%clk 0:01:28]}  Qb6 {[%clk 0:02:14]} 23. Nc3 {[%clk 0:01:27]}  Nc5 {[%clk 0:02:14]} 24. Rb1 {[%clk 0:01:19]}  Rxa3 {[%clk 0:02:07]} 25. Nxc5 {[%clk 0:01:19]}  Qxc5 {[%clk 0:02:07]} 26. Rxb7 {[%clk 0:01:20]}  Rfa8 {[%clk 0:02:01]} 27. Qb2 {[%clk 0:01:15]}  Qe3 {[%clk 0:01:59]} 28. Nd1 {[%clk 0:01:07]}  Qc5 {[%clk 0:01:52]} 29. Rb8+ {[%clk 0:00:46]}  Rxb8 {[%clk 0:01:46]} 30. Qxb8+ {[%clk 0:00:47]}  Kg7 {[%clk 0:01:46]} 31. Qb2 {[%clk 0:00:44]}  Ba4 {[%clk 0:01:34]} 32. f4 {[%clk 0:00:36]}  Bxd1 {[%clk 0:01:32]} 33. fxe5 {[%clk 0:00:20]}  dxe5 {[%clk 0:00:56]} 34. Bxd1 {[%clk 0:00:14]}  f6 {[%clk 0:00:56]} 35. h4 {[%clk 0:00:09]}  Qxc4 {[%clk 0:00:38]} 36. Be2 {[%clk 0:00:09]}  Qb3 {[%clk 0:00:36]} 37. Qxb3 {[%clk 0:00:05]}  Rxb3 {[%clk 0:00:37]} 38. Rc1 {[%clk 0:00:06]}  Rb7 {[%clk 0:00:37]} 39. Ba6 {[%clk 0:00:06]}  Ra7 {[%clk 0:00:37]} 40. Rc6 {[%clk 0:00:06]}  Nf8 {[%clk 0:00:36]} 41. Kh2 {[%clk 0:00:06]}  Nd7 {[%clk 0:00:36]} 42. Bc8 {[%clk 0:00:06]}  Nb8 {[%clk 0:00:32]} 43. Rc3 {[%clk 0:00:05]}  Kf7 {[%clk 0:00:22]} 44. Rb3 {[%clk 0:00:05]}  Ra8 {[%clk 0:00:20]} 45. Rc3 {[%clk 0:00:06]}  Ra7 {[%clk 0:00:18]} 46. Rb3 {[%clk 0:00:06]}  Ra8 {[%clk 0:00:16]} 47. Bb7 {[%clk 0:00:04]}  Ra7 {[%clk 0:00:15]} 48. d6 {[%clk 0:00:05]}  Na6 {[%clk 0:00:05]} 49. Bd5+ {[%clk 0:00:04]}  Ke8 {[%clk 0:00:04]} 50. Bc6+ {[%clk 0:00:05]}  Kd8 {[%clk 0:00:04]} 51. d7 {[%clk 0:00:04]}  Ke7 {[%clk 0:00:03]} 52. Kh3 {[%clk 0:00:04]}  Nc5 {[%clk 0:00:02]} 53. Rb5 {[%clk 0:00:03]}  Nxd7 {[%clk 0:00:03]} 54. Rd5 {[%clk 0:00:02]}  Nb6 {[%clk 0:00:04]} 55. Rd1 {[%clk 0:00:03]}  Ra4 {[%clk 0:00:04]} 56. Bxa4 {[%clk 0:00:03]}  Nxa4 {[%clk 0:00:04]} 57. Rc1 {[%clk 0:00:04]}  Kd6 {[%clk 0:00:05]} 58. Rd1+ {[%clk 0:00:04]}  Ke6 {[%clk 0:00:05]} 59. Rc1 {[%clk 0:00:05]}  Kd6 {[%clk 0:00:04]} 60. Rd1+ {[%clk 0:00:06]}  Ke6 {[%clk 0:00:05]} 61. Ra1 {[%clk 0:00:06]}  Nc5 {[%clk 0:00:04]} 62. Rc1 {[%clk 0:00:07]}  Nxe4 {[%clk 0:00:05]} 63. Rxc7 {[%clk 0:00:08]}  Kf5 {[%clk 0:00:04]} 64. Rc1 {[%clk 0:00:07]}  Nf2+ {[%clk 0:00:05]} 65. Kg3 {[%clk 0:00:07]}  Nd3 {[%clk 0:00:06]} 66. Rf1+ {[%clk 0:00:06]}  Nf4 {[%clk 0:00:06]} 67. Ra1 {[%clk 0:00:07]}  Ne2+ {[%clk 0:00:07]} 68. Kf2 {[%clk 0:00:08]}  Nd4 {[%clk 0:00:07]} 69. Ra4 {[%clk 0:00:07]}  g5 {[%clk 0:00:08]} 70. hxg5 {[%clk 0:00:06]}  Kxg5 {[%clk 0:00:09]} 71. Ra8 {[%clk 0:00:07]}  Kf4 {[%clk 0:00:09]} 72. Rh8 {[%clk 0:00:07]}  Kg4 {[%clk 0:00:10]} 73. Rg8+ {[%clk 0:00:07]}  Kf5 {[%clk 0:00:10]} 74. Ke3 {[%clk 0:00:07]}  Ne6 {[%clk 0:00:10]} 75. Rh8 {[%clk 0:00:07]}  Nf4 {[%clk 0:00:10]} 76. g3 {[%clk 0:00:06]}  Nd5+ {[%clk 0:00:10]} 77. Kf2 {[%clk 0:00:06]}  Kg5 {[%clk 0:00:10]} 78. Rg8+ {[%clk 0:00:06]}  Kf5 {[%clk 0:00:11]} 79. Rh8 {[%clk 0:00:07]}  Kg5 {[%clk 0:00:11]} 80. Rd8 {[%clk 0:00:07]}  Ne7 {[%clk 0:00:11]} 81. Re8 {[%clk 0:00:07]}  Ng6 {[%clk 0:00:11]} 82. Kf3 {[%clk 0:00:06]}  h4 {[%clk 0:00:11]} 83. g4 {[%clk 0:00:03]}  h3 {[%clk 0:00:12]} 84. Ra8 {[%clk 0:00:03]}  Nf4 {[%clk 0:00:12]} 85. Ra1 {[%clk 0:00:03]}  e4+ {[%clk 0:00:11]} 86. Kg3 {[%clk 0:00:03]}  Ne2+ {[%clk 0:00:11]} 87. Kxh3 {[%clk 0:00:03]}  Nf4+ {[%clk 0:00:12]} 88. Kg3 {[%clk 0:00:04]}  Ne2+ {[%clk 0:00:13]} 89. Kf2 {[%clk 0:00:05]}  Nd4 {[%clk 0:00:13]} 90. Ra4 {[%clk 0:00:04]}  Nc6 {[%clk 0:00:11]} 91. Rxe4 {[%clk 0:00:04]}  Ne5 {[%clk 0:00:12]} 92. Kg3 {[%clk 0:00:03]}  Ng6 {[%clk 0:00:12]} 93. Ra4 {[%clk 0:00:04]}  Ne5 {[%clk 0:00:12]} 94. Ra5 {[%clk 0:00:04]}  Kg6 {[%clk 0:00:11]} 95. Kf4 {[%clk 0:00:04]}  Nd3+ {[%clk 0:00:12]} 96. Kg3 {[%clk 0:00:05]}  Ne5 {[%clk 0:00:12]} 97. Kh4 {[%clk 0:00:05]}  Nf3+ {[%clk 0:00:12]} 98. Kh3 {[%clk 0:00:05]}  Ne5 {[%clk 0:00:13]} 99. Rb5 {[%clk 0:00:06]}  Kg5 {[%clk 0:00:13]} 100. Kg3 {[%clk 0:00:06]}  Kg6 {[%clk 0:00:13]} 101. Rb8 {[%clk 0:00:06]}  Kg5 {[%clk 0:00:12]} 102. Rg8+ {[%clk 0:00:06]}  Ng6 {[%clk 0:00:12]} 103. Kf3 {[%clk 0:00:06]}  Kh6 {[%clk 0:00:13]} 104. Ke4 {[%clk 0:00:06]}  Kg5 {[%clk 0:00:13]} 105. Kf3 {[%clk 0:00:06]}  Kh6 {[%clk 0:00:13]} 106. Kg3 {[%clk 0:00:06]}  Kg5 {[%clk 0:00:13]} 107. Rg7 {[%clk 0:00:06]}  Kh6 {[%clk 0:00:14]} 108. Rf7 {[%clk 0:00:07]}  Kg5 {[%clk 0:00:14]} 109. Rc7 {[%clk 0:00:07]}  Ne5 {[%clk 0:00:14]} 110. Rc5 {[%clk 0:00:07]}  Kg6 {[%clk 0:00:14]} 111. Ra5 {[%clk 0:00:07]}  Kg5 {[%clk 0:00:14]} 112. Rb5 {[%clk 0:00:07]}  Kg6 {[%clk 0:00:14]} 113. Kh2 {[%clk 0:00:07]}  Nxg4+ {[%clk 0:00:14]} 114. Kg3 {[%clk 0:00:07]}  Ne5 {[%clk 0:00:15]} 115. Kf4 {[%clk 0:00:08]}  Nd3+ {[%clk 0:00:15]} 116. Ke3 {[%clk 0:00:08]}  Ne5 {[%clk 0:00:16]} 117. Rb8 {[%clk 0:00:08]}  Ng4+ {[%clk 0:00:16]} 118. Kf4 {[%clk 0:00:09]}  Ne5 {[%clk 0:00:17]} 119. Rg8+ {[%clk 0:00:09]}  Kf7 {[%clk 0:00:17]} 120. Ra8 {[%clk 0:00:09]}  Kg6 {[%clk 0:00:18]} 121. Rg8+ {[%clk 0:00:10]}  Kf7 {[%clk 0:00:18]} 122. Rg1 {[%clk 0:00:11]}  Ke6 {[%clk 0:00:17]} 123. Ra1 {[%clk 0:00:11]}  Kf7 {[%clk 0:00:18]} 124. Kf5 {[%clk 0:00:11]}  Nc6 {[%clk 0:00:17]} 125. Ra6 {[%clk 0:00:04]}  Ne7+ {[%clk 0:00:18]} 126. Ke4 {[%clk 0:00:04]}  Kg6 {[%clk 0:00:17]} 127. Ra7 {[%clk 0:00:05]}  Nc6 {[%clk 0:00:17]} 128. Ra8 {[%clk 0:00:05]}  Ne5 {[%clk 0:00:18]} 129. Rf8 {[%clk 0:00:05]}  Nd7 {[%clk 0:00:18]} 130. Rg8+ {[%clk 0:00:05]}  Kf7 {[%clk 0:00:18]} 131. Rg1 {[%clk 0:00:06]}  Ke6 {[%clk 0:00:18]} 132. Ra1 {[%clk 0:00:07]}  Ne5 {[%clk 0:00:17]} 133. Ra6+ {[%clk 0:00:07]}  Ke7 {[%clk 0:00:16]} 134. Kf5 {[%clk 0:00:08]}  Nd7 {[%clk 0:00:17]} 135. Re6+ {[%clk 0:00:07]}  Kf7 {[%clk 0:00:17]} 136. Rd6 {[%clk 0:00:08]}  Ke7 {[%clk 0:00:17]} 137. Ra6 {[%clk 0:00:09]}  Kf7 {[%clk 0:00:17]} 138. Re6 {[%clk 0:00:09]}  Kf8 {[%clk 0:00:14]} 139. Kg6 {[%clk 0:00:08]}  Ne5+ {[%clk 0:00:11]} 140. Kxf6 {[%clk 0:00:08]}  Nd7+ {[%clk 0:00:11]} 141. Kg6 {[%clk 0:00:08]}  Nc5 {[%clk 0:00:10]} 142. Re1 {[%clk 0:00:08]}  Nd7 {[%clk 0:00:10]} 143. Rd1 {[%clk 0:00:07]}  Ke7 {[%clk 0:00:10]} 144. Kf5 {[%clk 0:00:06]}  Nc5 {[%clk 0:00:10]} 145. Rh1 {[%clk 0:00:07]}  Nd7 {[%clk 0:00:10]} 146. Rh6 {[%clk 0:00:07]}  Nc5 {[%clk 0:00:10]} 147. Rc6 {[%clk 0:00:07]}  Nd7 {[%clk 0:00:10]} 148. Re6+ {[%clk 0:00:07]}  Kf7 {[%clk 0:00:10]} 149. Re1 {[%clk 0:00:08]}  Nf8 {[%clk 0:00:09]} 150. Ke5 {[%clk 0:00:09]}  Nd7+ {[%clk 0:00:09]} 151. Kd6 {[%clk 0:00:09]}  Nf6 {[%clk 0:00:09]} 152. Rf1 {[%clk 0:00:09]}  Kg7 {[%clk 0:00:09]} 153. Ke7 {[%clk 0:00:08]}  Ng8+ {[%clk 0:00:09]} 154. Ke6 {[%clk 0:00:09]}  Nh6 {[%clk 0:00:09]} 155. Rg1+ {[%clk 0:00:08]}  Kf8 {[%clk 0:00:09]} 156. Rg2 {[%clk 0:00:07]}  Ng8 {[%clk 0:00:09]} 157. Rg6 {[%clk 0:00:07]}  Ne7 {[%clk 0:00:08]} 158. Rf6+ {[%clk 0:00:07]}  Ke8 {[%clk 0:00:08]} 159. Rh6 {[%clk 0:00:08]}  Ng8 {[%clk 0:00:08]} 160. Rh8 {[%clk 0:00:07]}  Kf8 {[%clk 0:00:08]} 161. Rh7 {[%clk 0:00:08]}  Ke8 {[%clk 0:00:08]} 162. Rf7 {[%clk 0:00:08]}  Nh6 {[%clk 0:00:07]} 163. Ra7 {[%clk 0:00:09]}  Kf8 {[%clk 0:00:06]} 164. Rb7 {[%clk 0:00:07]}  Ng8 {[%clk 0:00:05]} 165. Rh7 {[%clk 0:00:06]}  Ke8 {[%clk 0:00:06]} 166. Rf7 {[%clk 0:00:05]}  Nh6 {[%clk 0:00:06]} 167. Rf1 {[%clk 0:00:05]}  Ng8 {[%clk 0:00:06]} 168. Rf2 {[%clk 0:00:05]}  Nh6 {[%clk 0:00:06]} 169. Ra2 {[%clk 0:00:06]}  Kf8 {[%clk 0:00:06]} 170. Ra7 {[%clk 0:00:05]}  Ng8 {[%clk 0:00:06]} 171. Ra6 {[%clk 0:00:05]}  Kg7 {[%clk 0:00:06]} 172. Ra2 {[%clk 0:00:04]}  Kf8 {[%clk 0:00:06]} 173. Rh2 {[%clk 0:00:05]}  Kg7 {[%clk 0:00:06]} 174. Rh1 {[%clk 0:00:06]}  Kf8 {[%clk 0:00:07]} 175. Rf1+ {[%clk 0:00:06]}  Kg7 {[%clk 0:00:07]} 176. Rf7+ {[%clk 0:00:06]}  Kg6 {[%clk 0:00:07]} 177. Rb7 {[%clk 0:00:07]}  Nh6 {[%clk 0:00:07]} 178. Rb1 {[%clk 0:00:07]}  Kg5 {[%clk 0:00:07]} 179. Rh1 {[%clk 0:00:06]}  Ng4 {[%clk 0:00:07]} 180. Rf1 {[%clk 0:00:07]}  Ne3 {[%clk 0:00:07]} 181. Rf3 {[%clk 0:00:06]}  Ng4 {[%clk 0:00:07]} 182. Rf8 {[%clk 0:00:06]}  Kh4 {[%clk 0:00:07]} 183. Kf5 {[%clk 0:00:06]}  Ne3+ {[%clk 0:00:06]} 184. Ke4 {[%clk 0:00:06]}  Ng4 {[%clk 0:00:05]} 185. Kf4 {[%clk 0:00:06]}  Nh6 {[%clk 0:00:04]} 186. Rf6 {[%clk 0:00:05]}  Kh5 {[%clk 0:00:04]} 187. Rb6 {[%clk 0:00:04]}  Ng4 {[%clk 0:00:04]} 188. Rb5+ {[%clk 0:00:02]}  Kh4 {[%clk 0:00:05]} 189. Rb1 {[%clk 0:00:03]}  Nh2 {[%clk 0:00:04]} 190. Rb8 {[%clk 0:00:03]} 1/2-1/2


[Site "https://www.chess.com"]

[Event "Titled Tuesday Blitz October 11 Late 2022"]
[White "Torres Boch, Jose Francisco"]
[Black "Ezat, Mohamed"]
[WhiteFideId "2278383"]
[BlackFideId "10600906"]
[WhiteElo "2073"]
[BlackElo "2386"]
[Result "0-1"]
[Round "03"]
[TimeControl "180+1"]
[Date "2022.10.12"]
[WhiteClock "0:00:11"]
[BlackClock "0:00:04"]

1. e4 {[%clk 0:03:00]}  e5 {[%clk 0:02:59]} 2. Nf3 {[%clk 0:02:58]}  Nc6 {[%clk 0:02:58]} 3. Bb5 {[%clk 0:02:59]}  Nge7 {[%clk 0:02:55]} 4. Nc3 {[%clk 0:02:41]}  d6 {[%clk 0:01:53]} 5. d4 {[%clk 0:02:29]}  a6 {[%clk 0:01:51]} 6. Be2 {[%clk 0:02:21]}  exd4 {[%clk 0:01:49]} 7. Nxd4 {[%clk 0:02:22]}  Nxd4 {[%clk 0:01:49]} 8. Qxd4 {[%clk 0:02:23]}  Nc6 {[%clk 0:01:49]} 9. Qd2 {[%clk 0:02:21]}  g6 {[%clk 0:01:47]} 10. b3 {[%clk 0:02:20]}  Bg7 {[%clk 0:01:47]} 11. Bb2 {[%clk 0:02:20]}  O-O {[%clk 0:01:47]} 12. O-O-O {[%clk 0:02:18]}  a5 {[%clk 0:01:47]} 13. a4 {[%clk 0:02:10]}  Nb4 {[%clk 0:01:47]} 14. Kb1 {[%clk 0:02:06]}  Be6 {[%clk 0:01:40]} 15. h4 {[%clk 0:02:06]}  h5 {[%clk 0:01:39]} 16. f3 {[%clk 0:02:04]}  Qf6 {[%clk 0:01:38]} 17. g4 {[%clk 0:02:01]}  d5 {[%clk 0:01:29]} 18. gxh5 {[%clk 0:01:58]}  dxe4 {[%clk 0:01:28]} 19. hxg6 {[%clk 0:01:56]}  exf3 {[%clk 0:01:27]} 20. gxf7+ {[%clk 0:01:55]}  Rxf7 {[%clk 0:01:27]} 21. Rdf1 {[%clk 0:01:42]}  Rd8 {[%clk 0:01:18]} 22. Qc1 {[%clk 0:01:38]}  Bf5 {[%clk 0:01:08]} 23. Rxf3 {[%clk 0:01:33]}  Nxc2 {[%clk 0:00:31]} 24. Rxf5 {[%clk 0:01:24]}  Qxf5 {[%clk 0:00:22]} 25. Qxc2 {[%clk 0:01:02]}  Qxc2+ {[%clk 0:00:20]} 26. Kxc2 {[%clk 0:01:03]}  Rf2 {[%clk 0:00:20]} 27. Rg1 {[%clk 0:01:04]}  Rd7 {[%clk 0:00:17]} 28. Kb1 {[%clk 0:00:59]}  Kh8 {[%clk 0:00:15]} 29. Rxg7 {[%clk 0:00:52]}  Rxg7 {[%clk 0:00:12]} 30. Bc4 {[%clk 0:00:46]}  Rg1+ {[%clk 0:00:11]} 31. Ka2 {[%clk 0:00:45]}  Rgg2 {[%clk 0:00:12]} 32. Nd1+ {[%clk 0:00:42]}  Rxb2+ {[%clk 0:00:12]} 33. Nxb2 {[%clk 0:00:42]}  Rh2 {[%clk 0:00:13]} 34. Bd5 {[%clk 0:00:40]}  c6 {[%clk 0:00:12]} 35. Be6 {[%clk 0:00:38]}  Rxh4 {[%clk 0:00:12]} 36. Bc8 {[%clk 0:00:38]}  b6 {[%clk 0:00:09]} 37. Bd7 {[%clk 0:00:38]}  Rh6 {[%clk 0:00:08]} 38. Nc4 {[%clk 0:00:36]}  c5 {[%clk 0:00:08]} 39. Kb2 {[%clk 0:00:34]}  Kg7 {[%clk 0:00:08]} 40. Kc3 {[%clk 0:00:33]}  Kf7 {[%clk 0:00:09]} 41. Bc6 {[%clk 0:00:29]}  Ke7 {[%clk 0:00:06]} 42. Bd5 {[%clk 0:00:27]}  Kd7 {[%clk 0:00:05]} 43. Nd2 {[%clk 0:00:24]}  Kc7 {[%clk 0:00:05]} 44. Kc4 {[%clk 0:00:24]}  Rh4+ {[%clk 0:00:04]} 45. Be4 {[%clk 0:00:23]}  Kd6 {[%clk 0:00:02]} 46. Kb5 {[%clk 0:00:23]}  Kc7 {[%clk 0:00:01]} 47. Ka6 {[%clk 0:00:19]}  Rg4 {[%clk 0:00:02]} 48. Bd5 {[%clk 0:00:18]}  Rd4 {[%clk 0:00:02]} 49. Nc4 {[%clk 0:00:15]}  Rxd5 {[%clk 0:00:03]} 50. Nxb6 {[%clk 0:00:15]}  Rd6 {[%clk 0:00:03]} 51. Kxa5 {[%clk 0:00:11]}  Rxb6 {[%clk 0:00:04]} 52. b4 {[%clk 0:00:11]}  Rxb4 {[%clk 0:00:04]} 0-1


[Site "https://www.chess.com"]